{"text_format":"1","workbook":"xlsx","n_sheets":7,"sheets":["Инструкция по заполнению","Настройки","Реестр начислений","Шаблон ДШК","Шаблон ПД4","Квитанция ПД4","Карточки ДШК"],"not_rendered":{"charts":0,"images":0,"macros":1,"external_links":0,"defined_names":21,"comments":0,"pivot_tables":0},"unopened":[],"bounds":{"document_bytes":16777216,"sheet_cells":100000,"rows_first":2000,"rows_last":500,"rows_between":2000,"halvings":0,"cell_chars":16384,"cell_head_chars":4096},"cells_cut":0,"cells_raw":0,"read":"whole","date_system":"1900"}

{"sheet":"Инструкция по заполнению","index":0,"n_rows":10,"n_cols":2,"rows_kept":10,"cut":false,"hidden":false,"merged":[[2,1,2,12]]}
["Инструкция по заполнению файла"]
[1,"Для корректного формирования текстового файла нужно использовать Excel  2007, 2010."]
[2,"   Перед формированием файла на вкладке \"Настройка\" необходимо указать шаблон Сбербанка, расчетные реквизиты организации, каталог для выгрузки текстовых файлов, указать номер услуги. Если вы предоставляете реестр только по одной услуге - укажите 001"]
[3,"Во вкадке \"Настройка\" все поля обязательны для заполнения"]
[4,"Значения полей \"Лицевой счет\"/\"Номер договора\" являются ключевыми и они не должны дублироваться для одного реестра."]
[5,"В поле \"Лицевой счет\"/\"Номер договора\" разрешен ввод русских и латинских букв, цифр, символа «-»."]
[6,"В поле \"ФИО\" разрешен ввод русских букв, пробела и символа «-»."]
[7,"В поле \"Адрес\" разрешен ввод русских букв, цифр, запятой, точки, пробела, символов \"-\" и \"/\"."]
[8,"Если данные содержат ошибки, реестр начислений или карточки ДШК сформировать будет невозможно. "]
[9,"Сформированный файл передается в банк способом, установленным договором."]

{"sheet":"Настройки","index":1,"n_rows":17,"n_cols":28,"rows_kept":17,"cut":false,"hidden":false,"merged":[]}
["Параметр","Значение",null,null,null,null,null,null,null,null,null,null,null,null,null,null,null,null,null,"Шаблоны",null,"Поля шаблона",null,null,null,"Код кодировки",null,"Тип квитанции"]
["Шаблон *","7. ФИО плательщика, ФИО ребенка, назначение платежа, ОКТМО, КБК (без реестра начислений)",null,null,null,null,null,null,null,null,null,null,null,null,null,null,null,null,null,"1. Лицевой счет, ФИО (с реестром начислений)",null,"Лицевой счет;ФИО;Сумма",null,null,null,1,null,"Карточка"]
["Наименование организации","ООО Общество",null,null,null,null,null,null,null,null,null,null,null,null,null,null,null,null,null,"2. Лицевой счет, ФИО, адрес (без реестра начислений)",null,"Лицевой счет;ФИО;Адрес;Сумма",null,null,null,2,null,"Полная ПД-4"]
["ИНН","1234567890",null,null,null,null,null,null,null,null,null,null,null,null,null,null,null,null,null,"3. Лицевой счет, ФИО, адрес, период оплаты (с реестром начислений)",null,"Лицевой счет;ФИО;Адрес;Период;Сумма",null,null,null,3,null,"Укороченная ПД-4"]
["КПП","123456789",null,null,null,null,null,null,null,null,null,null,null,null,null,null,null,null,null,"4. Номер договора, ФИО, адрес (реестр начислений при необходимости)",null,"Номер договора;ФИО;Адрес;Сумма"]
["БИК","040040040",null,null,null,null,null,null,null,null,null,null,null,null,null,null,null,null,null,"5. ФИО, адрес, назначение платежа (без реестра начислений)",null,"ФИО;Адрес;Назначение;Сумма"]
["Корреспондентский счет","30101810600000000000",null,null,null,null,null,null,null,null,null,null,null,null,null,null,null,null,null,"6. ФИО, адрес, назначение платежа, ОКТМО, КБК (без реестра начислений)",null,"ФИО;Адрес;Назначение;ОКТМО;КБК;Сумма"]
["Наименование банка","ПАО СБЕРБАНК",null,null,null,null,null,null,null,null,null,null,null,null,null,null,null,null,null,"7. ФИО плательщика, ФИО ребенка, назначение платежа, ОКТМО, КБК (без реестра начислений)",null,"ФИО;ФИО ребенка;Назначение;ОКТМО;КБК;Сумма"]
["Расчетный счет","40702810970000100935"]
["Код услуги","001"]
["Каталог для выгрузки реестра начислений"]
["Дополнительные параметры ДШК"]
["Код кодировки текста: 1 – WIN1251 ; 2 – UTF8 ; 3 – КОI8-R",1]
["Вид квитанции","Полная ПД-4"]
[]
["* под Шаблоном понимается состав информации (реквизитов), содержащейся в исходящем от банка реестре переводов"]
["физических лиц и необходимой для идентификации плательщика (выбирается один из трех вариантов)"]

{"sheet":"Реестр начислений","index":2,"n_rows":7,"n_cols":6,"rows_kept":7,"cut":false,"hidden":false,"merged":[]}
["РЕЕСТР НАЧИСЛЕНИЙ",{"$f":"Настройки!B4&\"_\"&Настройки!B9&\"_\"&Настройки!B10&\"_\"&TEXT(TODAY(),\"ДД.ММ.ГГГГ\")&\".TXT\"","v":"1234567890_40702810970000100935_001_03.07.2018.TXT"}]
["Сумма реестра:",{"$f":"SUM(Реестр[Сумма])","v":0}]
["Количество записей:",{"$f":"COUNTA(Реестр[Сумма])","v":0}]
[]
[]
["ФИО","ФИО ребенка","Назначение","ОКТМО","КБК","Сумма"]
["лроолрпон попрае орпн","рпорп ропренк оре","оплата","04504512","00000000000000000130",20]

{"sheet":"Шаблон ДШК","index":3,"n_rows":47,"n_cols":25,"rows_kept":47,"cut":false,"hidden":true,"merged":[[1,23,2,45],[4,1,8,13],[1,0,3,22],[4,24,8,36],[9,1,10,13],[9,24,10,36],[11,1,12,13],[11,24,12,36],[13,1,14,13],[13,24,14,36],[16,1,20,13],[16,24,20,36],[22,0,23,22],[22,23,23,45],[25,1,29,13],[25,24,29,36],[34,1,35,13],[34,24,35,36],[30,1,31,13],[30,24,31,36],[32,1,33,13],[32,24,33,36],[37,1,41,13],[37,24,41,36],[43,0,44,22],[43,23,44,45],[46,1,50,13],[46,24,50,36],[55,1,56,13],[55,24,56,36],[58,1,62,13],[58,24,62,36],[51,1,52,13],[51,24,52,36],[53,1,54,13],[53,24,54,36]]}
[]
[{"$f":"Name","v":"ООО Общество"},null,null,null,null,null,null,null,null,null,null,null,null,null,null,null,null,null,null,null,null,null,null,{"$f":"Name","v":"ООО Общество"}]
[]
[]
[null,{"$f":"\"ИНН \"&INN&\", БИК \"&BIC&\", Р/С \"&PersonalAcc","v":"ИНН 1234567890, БИК 040040040, Р/С 40702810970000100935"},null,null,null,null,null,null,null,null,null,null,null,null,null,null,null,null,null,null,null,null,null,null,{"$f":"\"ИНН \"&INN&\", БИК \"&BIC&\", Р/С \"&PersonalAcc","v":"ИНН 1234567890, БИК 040040040, Р/С 40702810970000100935"}]
[]
[]
[]
[]
[]
[]
[]
[]
[]
[]
[]
[]
[]
[]
[]
[]
[]
[{"$f":"Name","v":"ООО Общество"},null,null,null,null,null,null,null,null,null,null,null,null,null,null,null,null,null,null,null,null,null,null,{"$f":"Name","v":"ООО Общество"}]
[]
[]
[null,{"$f":"\"ИНН \"&INN&\", БИК \"&BIC&\", Р/С \"&PersonalAcc","v":"ИНН 1234567890, БИК 040040040, Р/С 40702810970000100935"},null,null,null,null,null,null,null,null,null,null,null,null,null,null,null,null,null,null,null,null,null,null,{"$f":"\"ИНН \"&INN&\", БИК \"&BIC&\", Р/С \"&PersonalAcc","v":"ИНН 1234567890, БИК 040040040, Р/С 40702810970000100935"}]
[]
[]
[]
[]
[]
[]
[]
[]
[]
[]
[]
[]
[]
[]
[]
[]
[]
[{"$f":"Name","v":"ООО Общество"},null,null,null,null,null,null,null,null,null,null,null,null,null,null,null,null,null,null,null,null,null,null,{"$f":"Name","v":"ООО Общество"}]
[]
[]
[null,{"$f":"\"ИНН \"&INN&\", БИК \"&BIC&\", Р/С \"&PersonalAcc","v":"ИНН 1234567890, БИК 040040040, Р/С 40702810970000100935"},null,null,null,null,null,null,null,null,null,null,null,null,null,null,null,null,null,null,null,null,null,null,{"$f":"\"ИНН \"&INN&\", БИК \"&BIC&\", Р/С \"&PersonalAcc","v":"ИНН 1234567890, БИК 040040040, Р/С 40702810970000100935"}]

{"sheet":"Шаблон ПД4","index":4,"n_rows":27,"n_cols":3,"rows_kept":27,"cut":false,"hidden":true,"merged":[[26,0,26,2]]}
[null,null,"ПАО СБЕРБАНК                                                                                                                  Форма №ПД-4"]
[null,"Извещение",{"$f":"Name","v":"ООО Общество"}]
[null,null,"(наименование получателя платежа)"]
[null,null,{"$f":"\"  ИНН \"&INN&\" КПП \"&KPP&\"                         \"&PersonalAcc","v":"  ИНН 1234567890 КПП 123456789                         40702810970000100935"}]
[null,null,"  (инн получателя платежа)                                                    (номер счёта получателя платежа)"]
[null,null,{"$f":"\"БИК \"&BIC&\" (\"&BankName&\")\"","v":"БИК 040040040 (ПАО СБЕРБАНК)"}]
[null,null,"(наименование банка получателя платежа)"]
[]
[null,null,"(назначение платежа)"]
[]
[null,null,"(сумма платежа)"]
[null,null,"С условиями приёма указанной в платёжном документе суммы, в т.ч. с суммой взимаемой платы за услуги  "]
[null,null,"банка, ознакомлен и согласен.                    Подпись плательщика                                        \\"]
[null,null,"ПАО СБЕРБАНК                                                                                                                       Форма №ПД-4"]
[null,"Квитанция",{"$f":"C2","v":"ООО Общество"}]
[null,null,"(наименование получателя платежа)"]
[null,null,{"$f":"C4","v":"  ИНН 1234567890 КПП 123456789                         40702810970000100935"}]
[null,null,"  (инн получателя платежа)                                                        (номер счёта получателя платежа)"]
[null,null,{"$f":"C6","v":"БИК 040040040 (ПАО СБЕРБАНК)"}]
[null,null," (наименование банка получателя платежа)"]
[]
[null,null,"(назначение платежа)"]
[]
[null,null,"(сумма платежа)"]
[null,null,"С условиями приёма указанной в платёжном документе суммы, в т.ч. с суммой взимаемой платы за услуги  "]
[null,null,"банка, ознакомлен и согласен.                    Подпись плательщика                                        \\"]
["-----------------------------------------------------------------------------------------------------------------"]

{"sheet":"Квитанция ПД4","index":5,"n_rows":27,"n_cols":3,"rows_kept":27,"cut":false,"hidden":false,"merged":[[26,0,26,2]]}
[null,null,"ПАО СБЕРБАНК                                                                                                                  Форма №ПД-4"]
[null,"Извещение",{"$f":"Name","v":"ООО Общество"}]
[null,null,"(наименование получателя платежа)"]
[null,null,{"$f":"\"  ИНН \"&INN&\" КПП \"&KPP&\"                         \"&PersonalAcc","v":"  ИНН 1234567890 КПП 123456789                         40702810970000100935"}]
[null,null,"  (инн получателя платежа)                                                    (номер счёта получателя платежа)"]
[null,null,{"$f":"\"БИК \"&BIC&\" (\"&BankName&\")\"","v":"БИК 040040040 (ПАО СБЕРБАНК)"}]
[null,null,"(наименование банка получателя платежа)"]
[null,null,"ЛС: 123; ФИО: йцу йцу ц; Адрес: фыолр 30 - 2"]
[null,null,"(назначение платежа)"]
[null,null,"Сумма: 100 руб. 00 коп."]
[null,null,"(сумма платежа)"]
[null,null,"С условиями приёма указанной в платёжном документе суммы, в т.ч. с суммой взимаемой платы за услуги  "]
[null,null,"банка, ознакомлен и согласен.                    Подпись плательщика                                        \\"]
[null,null,"ПАО СБЕРБАНК                                                                                                                       Форма №ПД-4"]
[null,"Квитанция",{"$f":"C2","v":"ООО Общество"}]
[null,null,"(наименование получателя платежа)"]
[null,null,{"$f":"C4","v":"  ИНН 1234567890 КПП 123456789                         40702810970000100935"}]
[null,null,"  (инн получателя платежа)                                                        (номер счёта получателя платежа)"]
[null,null,{"$f":"C6","v":"БИК 040040040 (ПАО СБЕРБАНК)"}]
[null,null," (наименование банка получателя платежа)"]
[null,null,"ЛС: 123; ФИО: йцу йцу ц; Адрес: фыолр 30 - 2"]
[null,null,"(назначение платежа)"]
[null,null,"Сумма: 100 руб. 00 коп."]
[null,null,"(сумма платежа)"]
[null,null,"С условиями приёма указанной в платёжном документе суммы, в т.ч. с суммой взимаемой платы за услуги  "]
[null,null,"банка, ознакомлен и согласен.                    Подпись плательщика                                        \\"]
["-----------------------------------------------------------------------------------------------------------------"]

{"sheet":"Карточки ДШК","index":6,"n_rows":47,"n_cols":25,"rows_kept":47,"cut":false,"hidden":false,"merged":[[53,1,54,13],[53,24,54,36],[55,1,56,13],[55,24,56,36],[58,1,62,13],[58,24,62,36],[43,0,44,22],[43,23,44,45],[46,1,50,13],[46,24,50,36],[51,1,52,13],[51,24,52,36],[32,1,33,13],[32,24,33,36],[34,1,35,13],[34,24,35,36],[37,1,41,13],[37,24,41,36],[22,0,23,22],[22,23,23,45],[25,1,29,13],[25,24,29,36],[30,1,31,13],[30,24,31,36],[11,1,12,13],[11,24,12,36],[13,1,14,13],[13,24,14,36],[16,1,20,13],[16,24,20,36],[1,0,3,22],[1,23,2,45],[4,1,8,13],[4,24,8,36],[9,1,10,13],[9,24,10,36]]}
[]
[{"$f":"Name","v":"ООО Общество"},null,null,null,null,null,null,null,null,null,null,null,null,null,null,null,null,null,null,null,null,null,null,{"$f":"Name","v":"ООО Общество"}]
[]
[]
[null,{"$f":"\"ИНН \"&INN&\", БИК \"&BIC&\", Р/С \"&PersonalAcc","v":"ИНН 1234567890, БИК 040040040, Р/С 40702810970000100935"},null,null,null,null,null,null,null,null,null,null,null,null,null,null,null,null,null,null,null,null,null,null,{"$f":"\"ИНН \"&INN&\", БИК \"&BIC&\", Р/С \"&PersonalAcc","v":"ИНН 1234567890, БИК 040040040, Р/С 40702810970000100935"}]
[]
[]
[]
[]
[]
[]
[null,"лроолрпон попрае орпн"]
[]
[null,"Сумма: 20.00"]
[]
[]
[]
[]
[]
[]
[]
[]
[{"$f":"Name","v":"ООО Общество"},null,null,null,null,null,null,null,null,null,null,null,null,null,null,null,null,null,null,null,null,null,null,{"$f":"Name","v":"ООО Общество"}]
[]
[]
[null,{"$f":"\"ИНН \"&INN&\", БИК \"&BIC&\", Р/С \"&PersonalAcc","v":"ИНН 1234567890, БИК 040040040, Р/С 40702810970000100935"},null,null,null,null,null,null,null,null,null,null,null,null,null,null,null,null,null,null,null,null,null,null,{"$f":"\"ИНН \"&INN&\", БИК \"&BIC&\", Р/С \"&PersonalAcc","v":"ИНН 1234567890, БИК 040040040, Р/С 40702810970000100935"}]
[]
[]
[]
[]
[]
[]
[]
[]
[]
[]
[]
[]
[]
[]
[]
[]
[]
[{"$f":"Name","v":"ООО Общество"},null,null,null,null,null,null,null,null,null,null,null,null,null,null,null,null,null,null,null,null,null,null,{"$f":"Name","v":"ООО Общество"}]
[]
[]
[null,{"$f":"\"ИНН \"&INN&\", БИК \"&BIC&\", Р/С \"&PersonalAcc","v":"ИНН 1234567890, БИК 040040040, Р/С 40702810970000100935"},null,null,null,null,null,null,null,null,null,null,null,null,null,null,null,null,null,null,null,null,null,null,{"$f":"\"ИНН \"&INN&\", БИК \"&BIC&\", Р/С \"&PersonalAcc","v":"ИНН 1234567890, БИК 040040040, Р/С 40702810970000100935"}]